[Event "Early-Titled-Tuesday-Blitz-February-20-2024"]
[Site "Chess.com"]
[Date "2024.02.20"]
[Round "4"]
[White "wild3000"]
[Black "ajedrezsinlimites"]
[Result "1/2-1/2"]
[WhiteElo "2419"]
[BlackElo "2627"]
[TimeControl "180+1"]
[EndTime "8:38:19 PST"]
[Termination "Game drawn by repetition"]

1. d4 {[%clk 0:02:52.2]} 1... Nf6 {[%clk 0:02:53.7]} 2. Nf3 {[%clk 0:02:52]}
2... e6 {[%clk 0:02:53.9]} 3. e3 {[%clk 0:02:52]} 3... b6 {[%clk 0:02:54.8]} 4.
Be2 {[%clk 0:02:51.9]} 4... Bb7 {[%clk 0:02:55.7]} 5. O-O {[%clk 0:02:52.5]}
5... Be7 {[%clk 0:02:56.4]} 6. b3 {[%clk 0:02:53]} 6... O-O {[%clk 0:02:57.3]}
7. Bb2 {[%clk 0:02:53.6]} 7... a5 {[%clk 0:02:57.6]} 8. a3 {[%clk 0:02:53.4]}
8... d5 {[%clk 0:02:55.6]} 9. c4 {[%clk 0:02:53.2]} 9... Nbd7 {[%clk 0:02:56.3]}
10. Nc3 {[%clk 0:02:52.9]} 10... c5 {[%clk 0:02:56.9]} 11. Nb5 {[%clk
0:02:51.4]} 11... Rc8 {[%clk 0:02:56.3]} 12. Rc1 {[%clk 0:02:47.1]} 12... Ne4
{[%clk 0:02:56.6]} 13. Nd2 {[%clk 0:02:45]} 13... Ndf6 {[%clk 0:02:55.9]} 14.
Nxe4 {[%clk 0:02:42.7]} 14... Nxe4 {[%clk 0:02:55.8]} 15. cxd5 {[%clk 0:02:31]}
15... exd5 {[%clk 0:02:55.5]} 16. Bd3 {[%clk 0:02:29.5]} 16... f5 {[%clk
0:02:44.6]} 17. Qe2 {[%clk 0:02:11.5]} 17... Qd7 {[%clk 0:02:44.4]} 18. Rfd1
{[%clk 0:02:09.6]} 18... Bc6 {[%clk 0:02:39.1]} 19. a4 {[%clk 0:02:00.7]} 19...
f4 {[%clk 0:02:35.4]} 20. dxc5 {[%clk 0:01:40]} 20... Nxc5 {[%clk 0:02:32.8]}
21. Rxc5 {[%clk 0:01:06.9]} 21... Bxc5 {[%clk 0:02:28.7]} 22. Qh5 {[%clk
0:01:06.7]} 22... g6 {[%clk 0:01:55.9]} 23. Bxg6 {[%clk 0:01:05.1]} 23... fxe3
{[%clk 0:01:51.2]} 24. Bxh7+ {[%clk 0:00:19.9]} 24... Qxh7 {[%clk 0:01:45.5]}
25. Qg5+ {[%clk 0:00:12.7]} 25... Kf7 {[%clk 0:01:45.4]} 26. Qf6+ {[%clk
0:00:12.5]} 26... Ke8 {[%clk 0:01:43]} 27. Qe6+ {[%clk 0:00:09.2]} 27... Qe7
{[%clk 0:01:40.4]} 28. Qxc8+ {[%clk 0:00:08.4]} 28... Kf7 {[%clk 0:01:36]} 29.
Qxc6 {[%clk 0:00:03.9]} 29... exf2+ {[%clk 0:01:33.6]} 30. Kf1 {[%clk
0:00:04.2]} 30... Re8 {[%clk 0:01:25.5]} 31. Qxd5+ {[%clk 0:00:04.3]} 31... Kf8
{[%clk 0:01:23.1]} 32. Qf5+ {[%clk 0:00:04.1]} 32... Kg8 {[%clk 0:01:21.8]} 33.
Qg6+ {[%clk 0:00:04.4]} 33... Kf8 {[%clk 0:01:22]} 34. Qf5+ {[%clk 0:00:04.7]}
34... Kg8 {[%clk 0:01:11.8]} 35. Qg6+ {[%clk 0:00:04.9]} 35... Kf8 {[%clk
0:01:11.9]} 36. Qf5+ {[%clk 0:00:05.2]} 1/2-1/2

[Event "Early-Titled-Tuesday-Blitz-February-20-2024"]
[Site "Chess.com"]
[Date "2024.02.20"]
[Round "4"]
[White "Sattarov_Bobur"]
[Black "OparinGrigoriy"]
[Result "0-1"]
[WhiteElo "2805"]
[BlackElo "3012"]
[TimeControl "180+1"]
[EndTime "8:38:21 PST"]
[Termination "OparinGrigoriy won on time"]

1. e4 {[%clk 0:03:00.9]} 1... d6 {[%clk 0:02:59.8]} 2. d4 {[%clk 0:03:00.7]}
2... Nf6 {[%clk 0:03:00.4]} 3. Nc3 {[%clk 0:03:00.9]} 3... g6 {[%clk 0:03:00.6]}
4. f4 {[%clk 0:03:00.2]} 4... Bg7 {[%clk 0:02:59.7]} 5. Nf3 {[%clk 0:03:00.6]}
5... a6 {[%clk 0:03:00.3]} 6. Bd3 {[%clk 0:02:59.5]} 6... b5 {[%clk 0:03:00.5]}
7. O-O {[%clk 0:02:56.6]} 7... Bb7 {[%clk 0:02:59.2]} 8. e5 {[%clk 0:02:55.5]}
8... Nd5 {[%clk 0:02:57.6]} 9. Ne4 {[%clk 0:02:54.3]} 9... e6 {[%clk 0:02:55.4]}
10. c3 {[%clk 0:02:52.8]} 10... Nc6 {[%clk 0:02:44.4]} 11. a4 {[%clk 0:02:49.7]}
11... b4 {[%clk 0:02:44.1]} 12. Bd2 {[%clk 0:02:43.4]} 12... O-O {[%clk
0:02:41.2]} 13. Qe1 {[%clk 0:02:37.8]} 13... Kh8 {[%clk 0:02:31]} 14. Qg3 {[%clk
0:02:30.6]} 14... f5 {[%clk 0:02:21]} 15. Neg5 {[%clk 0:02:28.1]} 15... Qd7
{[%clk 0:02:17.6]} 16. Rae1 {[%clk 0:02:02.8]} 16... bxc3 {[%clk 0:02:11.2]} 17.
bxc3 {[%clk 0:02:01.7]} 17... h6 {[%clk 0:02:10.5]} 18. Qh3 {[%clk 0:01:43.6]}
18... Rae8 {[%clk 0:02:09.7]} 19. g4 {[%clk 0:01:30.3]} 19... Kg8 {[%clk
0:02:02.4]} 20. gxf5 {[%clk 0:01:23.5]} 20... gxf5 {[%clk 0:02:03.3]} 21. exd6
{[%clk 0:01:19.4]} 21... cxd6 {[%clk 0:02:00.9]} 22. Rf2 {[%clk 0:00:57.3]}
22... Nd8 {[%clk 0:01:37.5]} 23. Rg2 {[%clk 0:00:50.2]} 23... Nf6 {[%clk
0:01:37.4]} 24. Rg3 {[%clk 0:00:48.4]} 24... hxg5 {[%clk 0:01:31.3]} 25. Nxg5
{[%clk 0:00:47.8]} 25... Nf7 {[%clk 0:01:21.8]} 26. Nxf7 {[%clk 0:00:09]} 26...
Rxf7 {[%clk 0:01:18.1]} 27. Ree3 {[%clk 0:00:02.5]} 27... Qc6 {[%clk 0:01:13]}
28. Kf2 {[%clk 0:00:01.7]} 28... Ng4+ {[%clk 0:01:09.1]} 29. Rxg4 {[%clk
0:00:01.3]} 29... fxg4 {[%clk 0:01:10]} 30. Qh7+ {[%clk 0:00:01.4]} 30... Kf8
{[%clk 0:01:10.5]} 31. Rg3 {[%clk 0:00:01.6]} 31... Qh1 {[%clk 0:01:09.6]} 32.
Rxg4 {[%clk 0:00:01.5]} 32... Qf3+ {[%clk 0:01:09.6]} 0-1

[Event "Early-Titled-Tuesday-Blitz-February-20-2024"]
[Site "Chess.com"]
[Date "2024.02.20"]
[Round "4"]
[White "Kotofeyca"]
[Black "AttackSparrow"]
[Result "0-1"]
[WhiteElo "2400"]
[BlackElo "2620"]
[TimeControl "180+1"]
[EndTime "8:38:22 PST"]
[Termination "AttackSparrow won by resignation"]

1. d4 {[%clk 0:03:00.9]} 1... d5 {[%clk 0:03:00.1]} 2. c4 {[%clk 0:03:01]} 2...
e6 {[%clk 0:03:00.6]} 3. Nc3 {[%clk 0:03:01.6]} 3... Nf6 {[%clk 0:03:01.2]} 4.
cxd5 {[%clk 0:03:02.1]} 4... exd5 {[%clk 0:03:02.1]} 5. Bg5 {[%clk 0:03:02.3]}
5... Bb4 {[%clk 0:03:02.8]} 6. Qc2 {[%clk 0:03:02.1]} 6... h6 {[%clk 0:03:00.7]}
7. Bxf6 {[%clk 0:03:01]} 7... Qxf6 {[%clk 0:03:01.6]} 8. e3 {[%clk 0:03:01.4]}
8... O-O {[%clk 0:03:00]} 9. a3 {[%clk 0:03:00.9]} 9... Bxc3+ {[%clk 0:02:55.2]}
10. bxc3 {[%clk 0:03:00]} 10... c5 {[%clk 0:02:51.9]} 11. Nf3 {[%clk 0:02:58.3]}
11... Nc6 {[%clk 0:02:32]} 12. dxc5 {[%clk 0:02:55.5]} 12... Bg4 {[%clk
0:02:07.4]} 13. Nd4 {[%clk 0:02:52.1]} 13... Rac8 {[%clk 0:02:05.3]} 14. Be2
{[%clk 0:02:41.4]} 14... Bxe2 {[%clk 0:01:59]} 15. Qxe2 {[%clk 0:02:42.3]} 15...
Ne5 {[%clk 0:01:59.5]} 16. Qb5 {[%clk 0:02:06.3]} 16... Rxc5 {[%clk 0:01:57.5]}
17. Qxb7 {[%clk 0:02:02.5]} 17... Nd3+ {[%clk 0:01:53.9]} 18. Ke2 {[%clk
0:02:02.4]} 18... Rxc3 {[%clk 0:01:43.6]} 19. f3 {[%clk 0:01:26.6]} 19... Nf4+
{[%clk 0:01:09]} 20. Kf2 {[%clk 0:01:18.5]} 20... Re8 {[%clk 0:01:09.3]} 21.
Rhe1 {[%clk 0:01:05.5]} 21... Nd3+ {[%clk 0:01:09.4]} 22. Kg1 {[%clk 0:00:57.4]}
22... Nxe1 {[%clk 0:01:10.3]} 23. Rxe1 {[%clk 0:00:57.3]} 23... Rcxe3 {[%clk
0:01:06.3]} 24. Rd1 {[%clk 0:00:31.6]} 24... Rxa3 {[%clk 0:00:48.5]} 25. Qxd5
{[%clk 0:00:26]} 25... Rd8 {[%clk 0:00:47.5]} 26. Qc5 {[%clk 0:00:22.6]} 26...
Ra4 {[%clk 0:00:43.3]} 0-1

[Event "Early-Titled-Tuesday-Blitz-February-20-2024"]
[Site "Chess.com"]
[Date "2024.02.20"]
[Round "4"]
[White "rquery98"]
[Black "Viacheslav92"]
[Result "1-0"]
[WhiteElo "2765"]
[BlackElo "2546"]
[TimeControl "180+1"]
[EndTime "8:38:24 PST"]
[Termination "rquery98 won by resignation"]

1. c4 {[%clk 0:03:00.9]} 1... c5 {[%clk 0:02:58.3]} 2. g3 {[%clk 0:03:00.2]}
2... g6 {[%clk 0:02:57.8]} 3. Bg2 {[%clk 0:03:00.4]} 3... Bg7 {[%clk 0:02:58.5]}
4. Nc3 {[%clk 0:03:01.1]} 4... Nc6 {[%clk 0:02:58.3]} 5. Nf3 {[%clk 0:03:01.6]}
5... Nf6 {[%clk 0:02:58.3]} 6. d4 {[%clk 0:03:01.3]} 6... cxd4 {[%clk
0:02:57.3]} 7. Nxd4 {[%clk 0:03:02.2]} 7... Nxd4 {[%clk 0:02:58.2]} 8. Qxd4
{[%clk 0:03:02.1]} 8... O-O {[%clk 0:02:59.1]} 9. O-O {[%clk 0:03:01.7]} 9... d6
{[%clk 0:03:00]} 10. Qd3 {[%clk 0:03:01.9]} 10... Be6 {[%clk 0:02:55.1]} 11. Rb1
{[%clk 0:02:18.4]} 11... Qa5 {[%clk 0:02:48.9]} 12. Bd2 {[%clk 0:01:59.4]} 12...
Qh5 {[%clk 0:02:47.2]} 13. b3 {[%clk 0:01:17.2]} 13... Rab8 {[%clk 0:02:34.9]}
14. e4 {[%clk 0:01:09.3]} 14... a6 {[%clk 0:02:31]} 15. h4 {[%clk 0:01:08.9]}
15... b5 {[%clk 0:02:28.8]} 16. Nd5 {[%clk 0:01:06.3]} 16... Nxd5 {[%clk
0:02:19.4]} 17. cxd5 {[%clk 0:01:07.2]} 17... Bd7 {[%clk 0:02:16.1]} 18. Rfc1
{[%clk 0:01:04.8]} 18... Rfc8 {[%clk 0:02:16.4]} 19. Bf4 {[%clk 0:00:57.4]}
19... Be5 {[%clk 0:02:13.3]} 20. Bf3 {[%clk 0:00:53.6]} 20... Bg4 {[%clk
0:02:07.2]} 21. Bxg4 {[%clk 0:00:53.6]} 21... Qxg4 {[%clk 0:02:08.1]} 22. Bxe5
{[%clk 0:00:54.3]} 22... dxe5 {[%clk 0:02:08.8]} 23. Kg2 {[%clk 0:00:48.2]}
23... Rxc1 {[%clk 0:02:01.5]} 24. Rxc1 {[%clk 0:00:48.3]} 24... Rc8 {[%clk
0:02:02.1]} 25. Rc6 {[%clk 0:00:44.5]} 25... Ra8 {[%clk 0:01:53.4]} 26. Qf3
{[%clk 0:00:38.5]} 26... Qd7 {[%clk 0:01:50.3]} 27. Qc3 {[%clk 0:00:38.6]} 27...
h5 {[%clk 0:01:23.2]} 28. Qxe5 {[%clk 0:00:32.9]} 28... Re8 {[%clk 0:01:14.8]}
29. Rxa6 {[%clk 0:00:24.3]} 29... b4 {[%clk 0:01:15.1]} 30. Qd4 {[%clk
0:00:21.8]} 30... Rb8 {[%clk 0:01:13.2]} 31. Rb6 {[%clk 0:00:20.6]} 31... Rc8
{[%clk 0:01:09.7]} 32. Rxb4 {[%clk 0:00:20.3]} 32... Rc2 {[%clk 0:01:06.6]} 33.
Rb8+ {[%clk 0:00:20.2]} 33... Rc8 {[%clk 0:01:05.1]} 34. Rxc8+ {[%clk
0:00:20.4]} 34... Qxc8 {[%clk 0:01:06]} 35. Qc4 {[%clk 0:00:21]} 35... Qg4
{[%clk 0:01:05.8]} 36. a4 {[%clk 0:00:21.3]} 36... Qd1 {[%clk 0:01:06.5]} 37. a5
{[%clk 0:00:21.1]} 1-0

[Event "Early-Titled-Tuesday-Blitz-February-20-2024"]
[Site "Chess.com"]
[Date "2024.02.20"]
[Round "4"]
[White "klimkoj"]
[Black "jaskol95"]
[Result "1-0"]
[WhiteElo "2867"]
[BlackElo "2587"]
[TimeControl "180+1"]
[EndTime "8:38:27 PST"]
[Termination "klimkoj won by resignation"]

1. d4 {[%clk 0:03:00.9]} 1... d5 {[%clk 0:03:00.2]} 2. Nf3 {[%clk 0:03:01.5]}
2... Nc6 {[%clk 0:02:58.7]} 3. Bf4 {[%clk 0:02:59.3]} 3... f6 {[%clk 0:02:53.6]}
4. e3 {[%clk 0:02:58.6]} 4... g5 {[%clk 0:02:53.8]} 5. Bg3 {[%clk 0:02:58]} 5...
e6 {[%clk 0:02:52.9]} 6. c4 {[%clk 0:02:53.1]} 6... Bd6 {[%clk 0:02:49.6]} 7.
Nc3 {[%clk 0:02:51.2]} 7... Nge7 {[%clk 0:02:46.3]} 8. Qc2 {[%clk 0:02:44.2]}
8... Nf5 {[%clk 0:02:35.7]} 9. c5 {[%clk 0:02:37.5]} 9... Bxg3 {[%clk
0:02:34.1]} 10. hxg3 {[%clk 0:02:38.4]} 10... g4 {[%clk 0:02:14.7]} 11. Nh4
{[%clk 0:02:31.8]} 11... Nxh4 {[%clk 0:02:15]} 12. Rxh4 {[%clk 0:02:31.8]} 12...
f5 {[%clk 0:02:15.5]} 13. Bb5 {[%clk 0:02:19.4]} 13... Bd7 {[%clk 0:02:15]} 14.
Ne2 {[%clk 0:02:19.2]} 14... Qf6 {[%clk 0:02:08]} 15. Nf4 {[%clk 0:02:14.6]}
15... O-O-O {[%clk 0:02:06.4]} 16. Bxc6 {[%clk 0:02:13.5]} 16... Bxc6 {[%clk
0:02:03.3]} 17. Nd3 {[%clk 0:02:13.8]} 17... Bb5 {[%clk 0:01:42.8]} 18. Ne5
{[%clk 0:02:11.9]} 18... c6 {[%clk 0:01:24.3]} 19. a4 {[%clk 0:02:09.9]} 19...
Ba6 {[%clk 0:01:24.9]} 20. Rb1 {[%clk 0:02:06.3]} 20... Kb8 {[%clk 0:00:57.9]}
21. b4 {[%clk 0:01:56.1]} 21... Bc4 {[%clk 0:00:58]} 22. b5 {[%clk 0:01:56.7]}
22... cxb5 {[%clk 0:00:57.8]} 23. axb5 {[%clk 0:01:57.1]} 23... Qe7 {[%clk
0:00:49.2]} 24. Qa4 {[%clk 0:01:55]} 24... Qe8 {[%clk 0:00:39.4]} 25. Qa5 {[%clk
0:01:46.4]} 25... h5 {[%clk 0:00:07.3]} 26. b6 {[%clk 0:01:36.5]} 26... a6
{[%clk 0:00:07.8]} 27. c6 {[%clk 0:01:26.4]} 27... bxc6 {[%clk 0:00:03.7]} 28.
b7 {[%clk 0:01:27]} 28... Rh7 {[%clk 0:00:02]} 29. Nxc4 {[%clk 0:01:12.6]} 29...
dxc4 {[%clk 0:00:02.1]} 30. Qxa6 {[%clk 0:01:13.2]} 30... Kc7 {[%clk 0:00:01.6]}
31. Qa5+ {[%clk 0:01:06.2]} 31... Kd6 {[%clk 0:00:02.2]} 32. b8=Q+ {[%clk
0:01:04.4]} 32... Rxb8 {[%clk 0:00:02.2]} 33. Rxb8 {[%clk 0:01:03.4]} 33... Qxb8
{[%clk 0:00:02.3]} 34. Qe5+ {[%clk 0:01:03.7]} 34... Kd7 {[%clk 0:00:03.1]} 35.
Qxb8 {[%clk 0:01:04.2]} 1-0

[Event "Early-Titled-Tuesday-Blitz-February-20-2024"]
[Site "Chess.com"]
[Date "2024.02.20"]
[Round "4"]
[White "mary-sanna"]
[Black "gm_rashid"]
[Result "0-1"]
[WhiteElo "2150"]
[BlackElo "2464"]
[TimeControl "180+1"]
[EndTime "8:38:27 PST"]
[Termination "gm_rashid won on time"]

1. d4 {[%clk 0:03:00.1]} 1... Nf6 {[%clk 0:02:56]} 2. c4 {[%clk 0:03:00.1]} 2...
c5 {[%clk 0:02:55.6]} 3. d5 {[%clk 0:03:00.1]} 3... b5 {[%clk 0:02:56]} 4. Qc2
{[%clk 0:02:59.4]} 4... bxc4 {[%clk 0:02:53.8]} 5. e4 {[%clk 0:02:58.8]} 5... d6
{[%clk 0:02:53.9]} 6. Bxc4 {[%clk 0:02:54]} 6... g6 {[%clk 0:02:53.7]} 7. Nf3
{[%clk 0:02:52.4]} 7... Bg7 {[%clk 0:02:53.8]} 8. O-O {[%clk 0:02:51.4]} 8...
O-O {[%clk 0:02:52.6]} 9. Nc3 {[%clk 0:02:50.9]} 9... a5 {[%clk 0:02:51.3]} 10.
h3 {[%clk 0:02:42.5]} 10... Ba6 {[%clk 0:02:48]} 11. Nb5 {[%clk 0:02:28.6]}
11... Qb6 {[%clk 0:02:38.5]} 12. a4 {[%clk 0:02:27.5]} 12... Nbd7 {[%clk
0:02:38.4]} 13. Bd2 {[%clk 0:02:14.4]} 13... Ne8 {[%clk 0:02:32.2]} 14. Bc3
{[%clk 0:02:11.9]} 14... Nc7 {[%clk 0:02:27]} 15. Bxg7 {[%clk 0:02:09.4]} 15...
Kxg7 {[%clk 0:02:27]} 16. Na3 {[%clk 0:01:53.1]} 16... Rfb8 {[%clk 0:02:17.4]}
17. Rab1 {[%clk 0:01:38.3]} 17... Qb4 {[%clk 0:02:14.1]} 18. Qc3+ {[%clk
0:01:24]} 18... Kg8 {[%clk 0:02:09.3]} 19. e5 {[%clk 0:00:43.3]} 19... Qxa4
{[%clk 0:01:43.6]} 20. e6 {[%clk 0:00:33.6]} 20... fxe6 {[%clk 0:01:35]} 21.
dxe6 {[%clk 0:00:31.4]} 21... Nf6 {[%clk 0:01:35.3]} 22. Ng5 {[%clk 0:00:14]}
22... Bxc4 {[%clk 0:01:18.2]} 23. Nxc4 {[%clk 0:00:14.9]} 23... Qb3 {[%clk
0:01:16.1]} 24. Qc1 {[%clk 0:00:11.5]} 24... Rb4 {[%clk 0:01:12.7]} 25. Ne3
{[%clk 0:00:09.3]} 25... Nxe6 {[%clk 0:00:55.9]} 26. Nxe6 {[%clk 0:00:04.6]}
26... Qxe6 {[%clk 0:00:56.8]} 27. Nc2 {[%clk 0:00:02.3]} 27... Re4 {[%clk
0:00:54.6]} 0-1

[Event "Early-Titled-Tuesday-Blitz-February-20-2024"]
[Site "Chess.com"]
[Date "2024.02.20"]
[Round "4"]
[White "artooon"]
[Black "joshdaruca"]
[Result "1-0"]
[WhiteElo "3050"]
[BlackElo "2768"]
[TimeControl "180+1"]
[EndTime "8:38:28 PST"]
[Termination "artooon won by resignation"]

1. e4 {[%clk 0:02:57]} 1... e6 {[%clk 0:02:57.9]} 2. d4 {[%clk 0:02:56.8]} 2...
d5 {[%clk 0:02:58.5]} 3. Nd2 {[%clk 0:02:56.6]} 3... a6 {[%clk 0:02:58.4]} 4.
Ngf3 {[%clk 0:02:56.6]} 4... c5 {[%clk 0:02:58.5]} 5. c3 {[%clk 0:02:56.3]} 5...
Nc6 {[%clk 0:02:57.2]} 6. e5 {[%clk 0:02:52.5]} 6... Qb6 {[%clk 0:02:53.8]} 7.
Nb3 {[%clk 0:02:47.2]} 7... cxd4 {[%clk 0:02:42.6]} 8. cxd4 {[%clk 0:02:48.1]}
8... Bd7 {[%clk 0:02:33.3]} 9. Bd2 {[%clk 0:02:28.8]} 9... Rc8 {[%clk
0:02:22.7]} 10. Be2 {[%clk 0:02:25]} 10... Nge7 {[%clk 0:02:21.1]} 11. O-O
{[%clk 0:02:22.8]} 11... Nf5 {[%clk 0:02:21.2]} 12. Bc3 {[%clk 0:02:23.1]} 12...
Bb4 {[%clk 0:02:08]} 13. Bd3 {[%clk 0:02:16.2]} 13... Bxc3 {[%clk 0:02:07.5]}
14. bxc3 {[%clk 0:02:17.1]} 14... Nfe7 {[%clk 0:02:07.1]} 15. Nc5 {[%clk
0:02:13.9]} 15... Qa7 {[%clk 0:01:45.8]} 16. Ng5 {[%clk 0:02:07.8]} 16... Nxe5
{[%clk 0:01:24.2]} 17. Bxh7 {[%clk 0:01:41.6]} 17... Rxc5 {[%clk 0:01:12]} 18.
dxc5 {[%clk 0:01:42.5]} 18... g6 {[%clk 0:01:09.8]} 19. Qd4 {[%clk 0:01:27.5]}
19... f6 {[%clk 0:00:50.6]} 20. f4 {[%clk 0:01:14.3]} 20... Nf5 {[%clk
0:00:47.1]} 21. fxe5 {[%clk 0:01:00.7]} 21... Nxd4 {[%clk 0:00:46.6]} 22. Bxg6+
{[%clk 0:01:01.4]} 22... Kd8 {[%clk 0:00:34.2]} 23. Nf7+ {[%clk 0:01:01.5]}
23... Kc7 {[%clk 0:00:33.5]} 24. cxd4 {[%clk 0:00:57.1]} 24... Rg8 {[%clk
0:00:28]} 25. exf6 {[%clk 0:00:54.7]} 25... Rxg6 {[%clk 0:00:24.4]} 26. Ne5
{[%clk 0:00:55]} 26... Rg8 {[%clk 0:00:17]} 27. f7 {[%clk 0:00:55.4]} 27... Rf8
{[%clk 0:00:17.8]} 28. Ng6 {[%clk 0:00:55.9]} 28... Qb8 {[%clk 0:00:18]} 29.
Rae1 {[%clk 0:00:56.6]} 29... Qd8 {[%clk 0:00:13.2]} 30. h4 {[%clk 0:00:57]}
30... Bb5 {[%clk 0:00:10.8]} 31. Rf2 {[%clk 0:00:56.4]} 31... Rxf7 {[%clk
0:00:07.5]} 32. Rxf7+ {[%clk 0:00:57.3]} 32... Kb8 {[%clk 0:00:08]} 33. Rf8
{[%clk 0:00:57.6]} 33... Be8 {[%clk 0:00:07]} 34. Rxe6 {[%clk 0:00:58.2]} 1-0

[Event "Early-Titled-Tuesday-Blitz-February-20-2024"]
[Site "Chess.com"]
[Date "2024.02.20"]
[Round "4"]
[White "mbojan"]
[Black "zverr1"]
[Result "1-0"]
[WhiteElo "2857"]
[BlackElo "2531"]
[TimeControl "180+1"]
[EndTime "8:38:28 PST"]
[Termination "mbojan won by checkmate"]

1. e4 {[%clk 0:03:00.9]} 1... c5 {[%clk 0:02:59.9]} 2. Nf3 {[%clk 0:03:00.1]}
2... Nc6 {[%clk 0:03:00.4]} 3. Bb5 {[%clk 0:02:59.5]} 3... h5 {[%clk 0:03:00.7]}
4. O-O {[%clk 0:02:41.5]} 4... h4 {[%clk 0:02:58.8]} 5. h3 {[%clk 0:02:38.2]}
5... f6 {[%clk 0:02:58.4]} 6. c3 {[%clk 0:02:35]} 6... a6 {[%clk 0:02:54.3]} 7.
Bxc6 {[%clk 0:02:33.6]} 7... dxc6 {[%clk 0:02:53.9]} 8. d4 {[%clk 0:02:33.8]}
8... g5 {[%clk 0:02:35.7]} 9. Nh2 {[%clk 0:02:33]} 9... Qb6 {[%clk 0:02:07.9]}
10. Na3 {[%clk 0:02:29.6]} 10... Be6 {[%clk 0:02:02.8]} 11. dxc5 {[%clk
0:02:28.3]} 11... Qxc5 {[%clk 0:01:58.9]} 12. Be3 {[%clk 0:02:28.9]} 12... Qa5
{[%clk 0:01:53.7]} 13. Qe2 {[%clk 0:02:26.6]} 13... O-O-O {[%clk 0:01:47.7]} 14.
Nc4 {[%clk 0:02:25.5]} 14... Qc7 {[%clk 0:01:29.3]} 15. Nb6+ {[%clk 0:02:23.4]}
15... Kb8 {[%clk 0:01:28.7]} 16. Rfd1 {[%clk 0:02:23.7]} 16... Bg7 {[%clk
0:01:10.5]} 17. Rxd8+ {[%clk 0:02:20.6]} 17... Qxd8 {[%clk 0:01:11.4]} 18. Rd1
{[%clk 0:02:20.8]} 18... Qc7 {[%clk 0:01:11.4]} 19. Nf3 {[%clk 0:01:41.8]} 19...
Nh6 {[%clk 0:01:04.5]} 20. Nd4 {[%clk 0:01:41.8]} 20... Bf7 {[%clk 0:00:58.9]}
21. Nb3 {[%clk 0:01:41.4]} 21... Rd8 {[%clk 0:00:52.8]} 22. Nc5 {[%clk
0:01:40.8]} 22... Rxd1+ {[%clk 0:00:27.5]} 23. Qxd1 {[%clk 0:01:41.7]} 23... Qd6
{[%clk 0:00:26.8]} 24. Qa4 {[%clk 0:01:22.9]} 24... f5 {[%clk 0:00:08.4]} 25.
Nxa6+ {[%clk 0:01:20.7]} 25... bxa6 {[%clk 0:00:07.7]} 26. Qxa6 {[%clk
0:01:21.6]} 26... Qd1+ {[%clk 0:00:07.8]} 27. Kh2 {[%clk 0:01:22.2]} 27... Be5+
{[%clk 0:00:08.2]} 28. f4 {[%clk 0:01:20.3]} 28... gxf4 {[%clk 0:00:03.8]} 29.
Qa8+ {[%clk 0:00:59.4]} 29... Kc7 {[%clk 0:00:04.1]} 30. Qa7+ {[%clk 0:01:00.2]}
30... Kd8 {[%clk 0:00:02.1]} 31. Bd4 {[%clk 0:01:00.7]} 31... f3+ {[%clk
0:00:02.1]} 32. Bxe5 {[%clk 0:01:01.1]} 32... f2 {[%clk 0:00:01.2]} 33. Qb8#
{[%clk 0:01:00.8]} 1-0

[Event "Early-Titled-Tuesday-Blitz-February-20-2024"]
[Site "Chess.com"]
[Date "2024.02.20"]
[Round "4"]
[White "Beca95"]
[Black "LyonBeast"]
[Result "0-1"]
[WhiteElo "2880"]
[BlackElo "3188"]
[TimeControl "180+1"]
[EndTime "8:38:30 PST"]
[Termination "LyonBeast won by resignation"]

1. e4 {[%clk 0:03:00.9]} 1... c5 {[%clk 0:02:59.4]} 2. Nf3 {[%clk 0:02:59.9]}
2... d6 {[%clk 0:02:59.6]} 3. d4 {[%clk 0:03:00]} 3... cxd4 {[%clk 0:03:00.5]}
4. Nxd4 {[%clk 0:03:00.2]} 4... Nf6 {[%clk 0:03:01.3]} 5. Nc3 {[%clk 0:03:00.3]}
5... a6 {[%clk 0:03:02.1]} 6. Bc4 {[%clk 0:03:00.5]} 6... e6 {[%clk 0:03:01.4]}
7. Bb3 {[%clk 0:03:00.8]} 7... Nbd7 {[%clk 0:03:01.5]} 8. f4 {[%clk 0:03:00]}
8... Nc5 {[%clk 0:02:59.5]} 9. e5 {[%clk 0:02:59.6]} 9... Nfd7 {[%clk
0:02:55.6]} 10. f5 {[%clk 0:02:57]} 10... Nxb3 {[%clk 0:02:47]} 11. axb3 {[%clk
0:02:51.9]} 11... Nxe5 {[%clk 0:02:47.1]} 12. fxe6 {[%clk 0:02:51.1]} 12... Qh4+
{[%clk 0:02:41.7]} 13. g3 {[%clk 0:01:33]} 13... Qxd4 {[%clk 0:02:40.9]} 14.
exf7+ {[%clk 0:01:33.4]} 14... Kd7 {[%clk 0:02:41.2]} 15. Qe2 {[%clk 0:01:27.2]}
15... Qg4 {[%clk 0:02:34.1]} 16. Nd5 {[%clk 0:01:24]} 16... Qxe2+ {[%clk
0:02:26]} 17. Kxe2 {[%clk 0:01:24.9]} 17... Kc6 {[%clk 0:02:21]} 18. Nb4+ {[%clk
0:01:21.7]} 18... Kb5 {[%clk 0:02:18.5]} 19. Bd2 {[%clk 0:01:17]} 19... Bg4+
{[%clk 0:02:16.8]} 20. Kf2 {[%clk 0:01:17.3]} 20... d5 {[%clk 0:02:11.1]} 21.
Nxd5 {[%clk 0:01:16.8]} 21... Kc6 {[%clk 0:02:07.6]} 22. c4 {[%clk 0:01:10.6]}
22... Bc5+ {[%clk 0:01:57.6]} 23. Be3 {[%clk 0:01:10]} 23... Raf8 {[%clk
0:01:47.8]} 24. Bxc5 {[%clk 0:01:05.9]} 24... Rxf7+ {[%clk 0:01:43.8]} 25. Ke3
{[%clk 0:01:05.7]} 25... Kxc5 {[%clk 0:01:43.9]} 26. Ra5+ {[%clk 0:01:05.3]}
26... Kd6 {[%clk 0:01:41.6]} 27. Nf4 {[%clk 0:01:00.6]} 27... Re8 {[%clk
0:01:39.1]} 28. Kd2 {[%clk 0:00:56]} 28... Kc7 {[%clk 0:01:31.7]} 29. Kc3 {[%clk
0:00:53.5]} 29... Nc6 {[%clk 0:01:29.3]} 30. Rg5 {[%clk 0:00:52.4]} 30... Bf5
{[%clk 0:01:27.7]} 31. Nd5+ {[%clk 0:00:49.4]} 31... Kb8 {[%clk 0:01:27.3]} 32.
Rf1 {[%clk 0:00:50]} 32... Ref8 {[%clk 0:01:20.7]} 33. Rf4 {[%clk 0:00:45]}
33... h6 {[%clk 0:01:19.7]} 34. Rh5 {[%clk 0:00:44.8]} 34... Bg6 {[%clk
0:01:14.5]} 35. Rhh4 {[%clk 0:00:40.9]} 35... Rxf4 {[%clk 0:01:14.1]} 36. gxf4
{[%clk 0:00:41.8]} 36... Bf5 {[%clk 0:01:12.2]} 37. Ne3 {[%clk 0:00:40.9]} 37...
Ne7 {[%clk 0:01:10.6]} 38. Rh5 {[%clk 0:00:40.5]} 38... Kc7 {[%clk 0:01:10.4]}
39. Kd4 {[%clk 0:00:40.3]} 39... Kd6 {[%clk 0:01:10.6]} 40. b4 {[%clk
0:00:39.4]} 40... Ke6 {[%clk 0:01:10.2]} 41. b5 {[%clk 0:00:39.7]} 41... axb5
{[%clk 0:01:09.7]} 42. cxb5 {[%clk 0:00:40.6]} 42... b6 {[%clk 0:01:08.4]} 43.
Nc4 {[%clk 0:00:39.6]} 43... Rd8+ {[%clk 0:01:07.6]} 44. Ke3 {[%clk 0:00:36]}
44... Nd5+ {[%clk 0:01:08.3]} 45. Kf3 {[%clk 0:00:35.9]} 45... Nf6 {[%clk
0:01:01]} 46. Rh4 {[%clk 0:00:35.4]} 46... Rd3+ {[%clk 0:00:59.4]} 47. Ke2
{[%clk 0:00:35.7]} 47... Rb3 {[%clk 0:00:59.8]} 48. Nxb6 {[%clk 0:00:36.1]}
48... Rxb2+ {[%clk 0:00:59.6]} 0-1